[Event "*** Titled Tuesday Blitz"]
[Site "Chess.com"]
[Date "2019.03.05"]
[Round "2"]
[White "Indianlad"]
[Black "Tocras"]
[Result "1-0"]
[WhiteElo "3010"]
[BlackElo "2603"]
[TimeControl "180+2"]
[EndTime "13:26:43 PST"]
[Termination "Indianlad won by resignation"]

1. Nf3 {[%clk 0:03:01.9]} 1... Nf6 {[%clk 0:02:58.2]} 2. c4 {[%clk 0:03:03.1]}
2... g6 {[%clk 0:02:59.5]} 3. b3 {[%clk 0:03:03.4]} 3... Bg7 {[%clk 0:02:57.8]}
4. Bb2 {[%clk 0:03:04.7]} 4... d6 {[%clk 0:02:59.4]} 5. d4 {[%clk 0:03:04.6]}
5... O-O {[%clk 0:02:58.9]} 6. g3 {[%clk 0:03:05.7]} 6... e5 {[%clk 0:02:56.7]}
7. dxe5 {[%clk 0:03:05.6]} 7... dxe5 {[%clk 0:02:58.6]} 8. Qxd8 {[%clk 0:03:05]}
8... Rxd8 {[%clk 0:02:59.9]} 9. Bg2 {[%clk 0:03:03.4]} 9... e4 {[%clk
0:02:49.3]} 10. Ng5 {[%clk 0:02:59.9]} 10... e3 {[%clk 0:02:39.1]} 11. fxe3
{[%clk 0:02:54.5]} 11... Ng4 {[%clk 0:02:12.9]} 12. Bxg7 {[%clk 0:02:55]} 12...
Kxg7 {[%clk 0:02:14.8]} 13. Nc3 {[%clk 0:02:43]} 13... h6 {[%clk 0:01:57]} 14.
Nf3 {[%clk 0:02:26.6]} 14... Nxe3 {[%clk 0:01:58.2]} 15. Kf2 {[%clk 0:02:25.1]}
15... Ng4+ {[%clk 0:01:55.4]} 16. Kg1 {[%clk 0:02:26]} 16... Na6 {[%clk
0:01:49.8]} 17. Rd1 {[%clk 0:02:14.3]} 17... Bd7 {[%clk 0:01:20.8]} 18. Rd4
{[%clk 0:01:36.6]} 18... c6 {[%clk 0:01:13.8]} 19. h3 {[%clk 0:01:30.4]} 19...
Ne3 {[%clk 0:01:11.4]} 20. g4 {[%clk 0:01:31.4]} 20... Be6 {[%clk 0:01:03.7]}
21. Kf2 {[%clk 0:01:32.3]} 21... Nc2 {[%clk 0:00:58.2]} 22. Rxd8 {[%clk
0:01:31]} 22... Rxd8 {[%clk 0:01:00.1]} 23. Rc1 {[%clk 0:01:32.1]} 23... Na3
{[%clk 0:00:52.4]} 24. Ne4 {[%clk 0:01:19.4]} 24... Nb4 {[%clk 0:00:53.3]} 25.
Ne1 {[%clk 0:01:01.3]} 25... a5 {[%clk 0:00:49]} 26. Ke3 {[%clk 0:01:00.7]}
26... a4 {[%clk 0:00:44.6]} 27. Nc5 {[%clk 0:01:00.3]} 27... Nxa2 {[%clk
0:00:40.6]} 28. Ra1 {[%clk 0:00:58.8]} 28... axb3 {[%clk 0:00:40.1]} 29. Nxb3
{[%clk 0:00:57.1]} 29... Nxc4+ {[%clk 0:00:40.8]} 30. Kf2 {[%clk 0:00:58.9]}
30... Nc3 {[%clk 0:00:37.1]} 31. Nc5 {[%clk 0:01:00.1]} 31... Rd2 {[%clk
0:00:24.6]} 32. Nf3 {[%clk 0:00:59.4]} 32... Rxe2+ {[%clk 0:00:25.2]} 33. Kg1
{[%clk 0:01:00]} 33... Ne3 {[%clk 0:00:25.5]} 34. Bh1 {[%clk 0:01:00.8]} 34...
Bd5 {[%clk 0:00:25.9]} 35. Nd4 {[%clk 0:00:58.3]} 35... Rd2 {[%clk 0:00:22]} 36.
Nf3 {[%clk 0:00:58.8]} 36... Ne2+ {[%clk 0:00:21.4]} 37. Kf2 {[%clk 0:00:59.6]}
37... Bxf3 {[%clk 0:00:11.1]} 38. Kxe3 {[%clk 0:01:00.7]} 38... Rc2 {[%clk
0:00:11.9]} 39. Bxf3 {[%clk 0:01:01.3]} 39... Rxc5 {[%clk 0:00:12.5]} 40. Bxe2
{[%clk 0:01:02.6]} 40... Rc3+ {[%clk 0:00:14]} 41. Bd3 {[%clk 0:01:02.2]} 41...
b5 {[%clk 0:00:15.6]} 42. Ra7 {[%clk 0:01:02.6]} 42... c5 {[%clk 0:00:16]} 43.
Kd2 {[%clk 0:01:03.3]} 43... b4 {[%clk 0:00:17.5]} 44. h4 {[%clk 0:01:01.3]}
44... c4 {[%clk 0:00:17.8]} 45. Be2 {[%clk 0:01:02.1]} 45... Rg3 {[%clk
0:00:16.5]} 46. Bxc4 {[%clk 0:01:02.1]} 46... Rxg4 {[%clk 0:00:18]} 47. Rxf7+
{[%clk 0:01:01.9]} 47... Kh8 {[%clk 0:00:18.4]} 48. Rf8+ {[%clk 0:01:00.1]}
48... Kg7 {[%clk 0:00:19.1]} 49. Rf7+ {[%clk 0:01:01.4]} 49... Kh8 {[%clk
0:00:20.5]} 50. Rc7 {[%clk 0:01:02.4]} 50... Rxh4 {[%clk 0:00:21.5]} 51. Ke3
{[%clk 0:01:03.6]} 51... h5 {[%clk 0:00:21.8]} 52. Bf7 {[%clk 0:01:02.6]} 52...
Rg4 {[%clk 0:00:22.5]} 53. Be6 {[%clk 0:01:03.7]} 53... Rh4 {[%clk 0:00:21.7]}
54. Rb7 {[%clk 0:01:02.6]} 54... b3 {[%clk 0:00:20.4]} 55. Bxb3 {[%clk
0:01:02.8]} 55... Rg4 {[%clk 0:00:21.8]} 56. Be6 {[%clk 0:01:03.4]} 56... Ra4
{[%clk 0:00:21.5]} 57. Bf7 {[%clk 0:01:03.1]} 57... Ra3+ {[%clk 0:00:21.1]} 58.
Kf4 {[%clk 0:01:03.7]} 58... Kg7 {[%clk 0:00:22.7]} 59. Be8+ {[%clk 0:01:03.4]}
59... Kh6 {[%clk 0:00:24.1]} 60. Rb6 {[%clk 0:01:04.1]} 60... Kg7 {[%clk
0:00:21]} 61. Bxg6 {[%clk 0:01:01.2]} 61... h4 {[%clk 0:00:21.6]} 62. Be4 {[%clk
0:00:57.9]} 62... h3 {[%clk 0:00:21.9]} 63. Rg6+ {[%clk 0:00:58.8]} 63... Kf7
{[%clk 0:00:23.1]} 64. Rh6 {[%clk 0:00:59.9]} 64... Ke7 {[%clk 0:00:23.7]} 65.
Bf3 {[%clk 0:01:00.7]} 65... Ra4+ {[%clk 0:00:22.2]} 66. Kg3 {[%clk 0:01:01.9]}
66... Ra5 {[%clk 0:00:23]} 67. Rh7+ {[%clk 0:01:02.5]} 67... Kf6 {[%clk
0:00:24]} 68. Rxh3 {[%clk 0:01:04.4]} 68... Ra1 {[%clk 0:00:24.2]} 69. Kf4
{[%clk 0:01:04.9]} 69... Rf1 {[%clk 0:00:24.5]} 70. Rh6+ {[%clk 0:01:04.9]}
70... Kg7 {[%clk 0:00:25.7]} 71. Ra6 {[%clk 0:01:06.8]} 71... Kf8 {[%clk
0:00:25.9]} 72. Kg4 {[%clk 0:01:07.1]} 72... Ke7 {[%clk 0:00:26.5]} 73. Kf4
{[%clk 0:01:07.3]} 73... Kd8 {[%clk 0:00:25.9]} 74. Ra7 {[%clk 0:01:07.8]} 74...
Ke8 {[%clk 0:00:25.9]} 75. Rh7 {[%clk 0:01:08.5]} 75... Kd8 {[%clk 0:00:26.4]}
76. Ke4 {[%clk 0:01:09.6]} 76... Ke8 {[%clk 0:00:23.9]} 77. Bg4 {[%clk
0:01:09.9]} 77... Kf8 {[%clk 0:00:23.2]} 78. Be6 {[%clk 0:01:08.7]} 78... Ke8
{[%clk 0:00:18.7]} 79. Ke5 {[%clk 0:01:09]} 79... Re1+ {[%clk 0:00:13.2]} 80.
Kd6 {[%clk 0:01:10]} 80... Rd1+ {[%clk 0:00:12.3]} 81. Bd5 {[%clk 0:01:11.1]}
81... Kf8 {[%clk 0:00:13.4]} 82. Rf7+ {[%clk 0:01:11]} 82... Ke8 {[%clk
0:00:14.7]} 83. Rf4 {[%clk 0:01:11.4]} 83... Rd2 {[%clk 0:00:14.9]} 84. Rf1
{[%clk 0:01:11]} 84... Rd3 {[%clk 0:00:15.8]} 85. Ra1 {[%clk 0:01:11.7]} 85...
Kf8 {[%clk 0:00:15.6]} 86. Rg1 {[%clk 0:01:12.8]} 1-0

[Event "*** Titled Tuesday Blitz"]
[Site "Chess.com"]
[Date "2019.03.05"]
[Round "2"]
[White "Perecke"]
[Black "politeplayer"]
[Result "0-1"]
[WhiteElo "2035"]
[BlackElo "2074"]
[TimeControl "180+2"]
[EndTime "13:26:50 PST"]
[Termination "politeplayer won by resignation"]

1. e4 {[%clk 0:03:01.9]} 1... c5 {[%clk 0:03:00.4]} 2. Nf3 {[%clk 0:03:00.6]}
2... d6 {[%clk 0:03:01.3]} 3. d4 {[%clk 0:02:59.8]} 3... cxd4 {[%clk 0:03:02.2]}
4. Nxd4 {[%clk 0:03:01.7]} 4... Nf6 {[%clk 0:03:03.7]} 5. Nc3 {[%clk 0:03:02.3]}
5... g6 {[%clk 0:03:05.2]} 6. Be3 {[%clk 0:03:02.4]} 6... Bg7 {[%clk 0:03:06.1]}
7. f3 {[%clk 0:03:03.6]} 7... O-O {[%clk 0:03:07.4]} 8. Qd2 {[%clk 0:03:04.5]}
8... Nc6 {[%clk 0:03:09]} 9. g4 {[%clk 0:03:05.1]} 9... Nxd4 {[%clk 0:02:58.1]}
10. Bxd4 {[%clk 0:03:00.2]} 10... Be6 {[%clk 0:02:59.3]} 11. h4 {[%clk
0:02:59.1]} 11... Qa5 {[%clk 0:02:57.5]} 12. h5 {[%clk 0:02:36.6]} 12... Rac8
{[%clk 0:02:51.9]} 13. hxg6 {[%clk 0:02:34.2]} 13... fxg6 {[%clk 0:02:52.1]} 14.
Qh2 {[%clk 0:02:30.3]} 14... b5 {[%clk 0:01:24.2]} 15. Bxf6 {[%clk 0:02:22.7]}
15... Rxf6 {[%clk 0:01:21.7]} 16. Qxh7+ {[%clk 0:02:23.6]} 16... Kf8 {[%clk
0:01:19.6]} 17. Bd3 {[%clk 0:01:43.7]} 17... b4 {[%clk 0:00:41.3]} 18. Ne2
{[%clk 0:01:28.1]} 18... b3+ {[%clk 0:00:40.7]} 19. c3 {[%clk 0:01:24]} 19...
bxa2 {[%clk 0:00:22.8]} 20. O-O {[%clk 0:01:16.3]} 20... Qb6+ {[%clk 0:00:20.2]}
21. Kg2 {[%clk 0:01:13.3]} 21... Qe3 {[%clk 0:00:20.1]} 22. Qh3 {[%clk 0:01:01]}
22... Qxd3 {[%clk 0:00:20]} 23. Rfe1 {[%clk 0:00:50.5]} 23... g5 {[%clk
0:00:20.9]} 24. Nd4 {[%clk 0:00:49.3]} 24... Rh6 {[%clk 0:00:19.9]} 25. Nxe6+
{[%clk 0:00:40.3]} 25... Kg8 {[%clk 0:00:20.6]} 26. Qg3 {[%clk 0:00:21.7]} 26...
Be5 {[%clk 0:00:21.5]} 27. f4 {[%clk 0:00:20.7]} 27... Qd2+ {[%clk 0:00:22.9]}
28. Kg1 {[%clk 0:00:17.3]} 28... gxf4 {[%clk 0:00:23.3]} 29. Qg2 {[%clk
0:00:10.2]} 29... Qxg2+ {[%clk 0:00:22.1]} 30. Kxg2 {[%clk 0:00:12.1]} 30...
Rxe6 {[%clk 0:00:22.6]} 31. Rxa2 {[%clk 0:00:13.4]} 31... Rg6 {[%clk 0:00:23.3]}
32. Kf3 {[%clk 0:00:14.3]} 32... Kf7 {[%clk 0:00:24.6]} 33. Rxa7 {[%clk
0:00:15.3]} 33... Rh8 {[%clk 0:00:25.8]} 34. Rg1 {[%clk 0:00:13.8]} 34... Rh3+
{[%clk 0:00:26.2]} 35. Kf2 {[%clk 0:00:15]} 35... Rh2+ {[%clk 0:00:26.8]} 36.
Rg2 {[%clk 0:00:13.7]} 36... Rxg2+ {[%clk 0:00:26.8]} 37. Kxg2 {[%clk
0:00:15.6]} 37... Rxg4+ {[%clk 0:00:28.2]} 38. Kf1 {[%clk 0:00:17]} 38... f3
{[%clk 0:00:29]} 39. Ra3 {[%clk 0:00:14.7]} 39... Rg2 {[%clk 0:00:28.9]} 40. c4
{[%clk 0:00:14.6]} 40... Rxb2 {[%clk 0:00:26.4]} 41. Rxf3+ {[%clk 0:00:15.4]}
41... Ke6 {[%clk 0:00:27.9]} 42. Ra3 {[%clk 0:00:11.9]} 42... Rc2 {[%clk
0:00:28.2]} 43. Ra4 {[%clk 0:00:12.8]} 43... Bd4 {[%clk 0:00:28.2]} 44. Ke1
{[%clk 0:00:11.6]} 44... Ke5 {[%clk 0:00:28.1]} 45. Kd1 {[%clk 0:00:12.5]} 45...
Rc3 {[%clk 0:00:29.3]} 46. Ra7 {[%clk 0:00:11]} 46... Kxe4 {[%clk 0:00:29.7]}
47. Rxe7+ {[%clk 0:00:12]} 47... Kd3 {[%clk 0:00:24]} 48. Rd7 {[%clk 0:00:12.7]}
48... Be5 {[%clk 0:00:21.3]} 49. c5 {[%clk 0:00:10.7]} 49... Ra3 {[%clk
0:00:21.3]} 50. Ke1 {[%clk 0:00:09]} 50... Ke3 {[%clk 0:00:20.3]} 51. Kd1 {[%clk
0:00:09.9]} 51... Rd3+ {[%clk 0:00:19.8]} 52. Ke1 {[%clk 0:00:09]} 52... dxc5
{[%clk 0:00:20.4]} 53. Re7 {[%clk 0:00:06.5]} 53... Ke4 {[%clk 0:00:21.3]} 54.
Re8 {[%clk 0:00:05.7]} 54... c4 {[%clk 0:00:22]} 55. Ke2 {[%clk 0:00:06.9]}
55... Ra3 {[%clk 0:00:21.6]} 56. Rc8 {[%clk 0:00:07.1]} 56... Ra2+ {[%clk
0:00:22.4]} 57. Kd1 {[%clk 0:00:08.2]} 57... c3 {[%clk 0:00:23.1]} 58. Rc6
{[%clk 0:00:05.3]} 58... Bd4 {[%clk 0:00:22.8]} 59. Rc4 {[%clk 0:00:04.8]} 59...
Rd2+ {[%clk 0:00:23.5]} 60. Kc1 {[%clk 0:00:04.8]} 60... Kd3 {[%clk 0:00:24.1]}
61. Rc8 {[%clk 0:00:06.1]} 61... Rc2+ {[%clk 0:00:24.2]} 62. Kb1 {[%clk
0:00:05.6]} 62... Rb2+ {[%clk 0:00:24.7]} 63. Ka1 {[%clk 0:00:05.4]} 63... Rb7
{[%clk 0:00:21.3]} 64. Rc6 {[%clk 0:00:03.6]} 64... c2+ {[%clk 0:00:22]} 65. Ka2
{[%clk 0:00:04.7]} 65... Ra7+ {[%clk 0:00:21.4]} 66. Kb3 {[%clk 0:00:05.7]}
66... Rb7+ {[%clk 0:00:22.3]} 67. Ka2 {[%clk 0:00:06.9]} 67... Bc3 {[%clk
0:00:23]} 68. Rd6+ {[%clk 0:00:06.4]} 68... Ke4 {[%clk 0:00:22.9]} 69. Re6+
{[%clk 0:00:06.8]} 69... Kd5 {[%clk 0:00:23.6]} 70. Rg6 {[%clk 0:00:06.1]} 70...
Rb2+ {[%clk 0:00:24.1]} 71. Ka3 {[%clk 0:00:06.8]} 71... c1=Q {[%clk 0:00:24.8]}
72. Rg5+ {[%clk 0:00:05.8]} 72... Ke4 {[%clk 0:00:24.9]} 73. Rg3 {[%clk
0:00:06.1]} 0-1

[Event "*** Titled Tuesday Blitz"]
[Site "Chess.com"]
[Date "2019.03.05"]
[Round "2"]
[White "grzechu96"]
[Black "Vuk2000"]
[Result "0-1"]
[WhiteElo "2554"]
[BlackElo "2740"]
[TimeControl "180+2"]
[EndTime "13:27:03 PST"]
[Termination "Vuk2000 won by resignation"]

1. e4 {[%clk 0:03:01.9]} 1... e6 {[%clk 0:03:01.1]} 2. d4 {[%clk 0:03:00.9]}
2... d5 {[%clk 0:03:02.1]} 3. Bd3 {[%clk 0:03:02]} 3... c5 {[%clk 0:03:00.5]} 4.
exd5 {[%clk 0:02:59.6]} 4... Qxd5 {[%clk 0:02:52.8]} 5. Nc3 {[%clk 0:02:59.8]}
5... Qxd4 {[%clk 0:02:38.5]} 6. Nb5 {[%clk 0:03:00.2]} 6... Qd8 {[%clk
0:02:38.9]} 7. Bf4 {[%clk 0:03:00.6]} 7... Na6 {[%clk 0:02:39.5]} 8. Qe2 {[%clk
0:02:57.3]} 8... Nf6 {[%clk 0:02:35.6]} 9. O-O-O {[%clk 0:02:51.6]} 9... Bd7
{[%clk 0:02:23.9]} 10. Nd6+ {[%clk 0:02:46]} 10... Bxd6 {[%clk 0:02:23.1]} 11.
Bxd6 {[%clk 0:02:47.9]} 11... Nb4 {[%clk 0:02:18.8]} 12. Bxc5 {[%clk 0:02:43.2]}
12... Nxa2+ {[%clk 0:02:00.7]} 13. Kb1 {[%clk 0:02:43.1]} 13... Qa5 {[%clk
0:02:02.3]} 14. Qe3 {[%clk 0:01:47.4]} 14... Nb4 {[%clk 0:00:58.5]} 15. Bxb4
{[%clk 0:01:20.6]} 15... Qxb4 {[%clk 0:01:00.4]} 16. Nf3 {[%clk 0:01:21.9]}
16... O-O {[%clk 0:00:56.1]} 17. Ne5 {[%clk 0:01:22.2]} 17... Bb5 {[%clk
0:00:50.4]} 18. c3 {[%clk 0:01:11.7]} 18... Bxd3+ {[%clk 0:00:49.3]} 19. Rxd3
{[%clk 0:01:12.4]} 19... Qa5 {[%clk 0:00:47.5]} 20. Rhd1 {[%clk 0:00:55.1]}
20... h6 {[%clk 0:00:36.3]} 21. g4 {[%clk 0:00:41.3]} 21... Rfd8 {[%clk
0:00:31]} 22. g5 {[%clk 0:00:40.8]} 22... hxg5 {[%clk 0:00:31.4]} 23. Qxg5
{[%clk 0:00:42.1]} 23... Rxd3 {[%clk 0:00:32.3]} 24. Rxd3 {[%clk 0:00:43.4]}
24... Rd8 {[%clk 0:00:19.6]} 25. Rg3 {[%clk 0:00:37.8]} 25... Ne8 {[%clk
0:00:20.9]} 26. Nxf7 {[%clk 0:00:29.7]} 26... Rd1+ {[%clk 0:00:09]} 27. Kc2
{[%clk 0:00:31.1]} 27... Qxg5 {[%clk 0:00:05]} 28. Nxg5 {[%clk 0:00:31.5]} 28...
Rd6 {[%clk 0:00:05.4]} 29. Ne4 {[%clk 0:00:31.2]} 29... Rd7 {[%clk 0:00:05.5]}
30. Nc5 {[%clk 0:00:30.7]} 30... Re7 {[%clk 0:00:06.6]} 31. Rd3 {[%clk
0:00:23.5]} 31... Nf6 {[%clk 0:00:06.9]} 32. Rd8+ {[%clk 0:00:21.6]} 32... Kf7
{[%clk 0:00:07.9]} 33. Rb8 {[%clk 0:00:21.4]} 33... b6 {[%clk 0:00:09.2]} 34.
Nd3 {[%clk 0:00:23]} 34... e5 {[%clk 0:00:08.3]} 35. Ra8 {[%clk 0:00:23]} 35...
Ng4 {[%clk 0:00:07.6]} 36. h3 {[%clk 0:00:24.3]} 36... Nf6 {[%clk 0:00:08.3]}
37. Kd2 {[%clk 0:00:25.3]} 37... e4 {[%clk 0:00:08.5]} 38. Nb4 {[%clk
0:00:26.2]} 38... a5 {[%clk 0:00:04.4]} 39. Nc6 {[%clk 0:00:26.9]} 39... Rc7
{[%clk 0:00:05.8]} 40. Nd4 {[%clk 0:00:27.1]} 40... Rb7 {[%clk 0:00:05.7]} 41.
Rc8 {[%clk 0:00:27.6]} 41... Nd5 {[%clk 0:00:06.1]} 42. Rd8 {[%clk 0:00:26.3]}
42... Nf6 {[%clk 0:00:07]} 43. Ke3 {[%clk 0:00:26.8]} 43... b5 {[%clk
0:00:08.3]} 44. Ra8 {[%clk 0:00:27.6]} 44... a4 {[%clk 0:00:09.5]} 45. Ra5
{[%clk 0:00:28.7]} 45... b4 {[%clk 0:00:11]} 46. Rxa4 {[%clk 0:00:29.8]} 46...
bxc3 {[%clk 0:00:12.5]} 47. bxc3 {[%clk 0:00:31.4]} 47... Rc7 {[%clk 0:00:14.1]}
48. c4 {[%clk 0:00:31.7]} 48... Rc5 {[%clk 0:00:13.1]} 49. Nb3 {[%clk
0:00:32.6]} 49... Rh5 {[%clk 0:00:13.5]} 50. Nd2 {[%clk 0:00:21.7]} 50... Rxh3+
{[%clk 0:00:14.2]} 51. Kf4 {[%clk 0:00:23.3]} 51... Rh4+ {[%clk 0:00:14.2]} 52.
Kg3 {[%clk 0:00:17.7]} 52... Rg4+ {[%clk 0:00:15]} 53. Kh3 {[%clk 0:00:19.1]}
53... Rf4 {[%clk 0:00:16.2]} 54. Kg3 {[%clk 0:00:19]} 54... Nh5+ {[%clk
0:00:14.4]} 55. Kg2 {[%clk 0:00:20.3]} 55... Rg4+ {[%clk 0:00:05.6]} 56. Kf1
{[%clk 0:00:20.4]} 56... Nf6 {[%clk 0:00:05.6]} 57. Ke2 {[%clk 0:00:20.8]} 57...
Rh4 {[%clk 0:00:05.3]} 58. Ra7+ {[%clk 0:00:19.7]} 58... Kf8 {[%clk 0:00:05.8]}
59. c5 {[%clk 0:00:20.9]} 59... Rh5 {[%clk 0:00:07.2]} 60. Rc7 {[%clk
0:00:20.8]} 60... Rd5 {[%clk 0:00:08]} 61. Nc4 {[%clk 0:00:19.3]} 61... Ng4
{[%clk 0:00:08.1]} 62. Nb6 {[%clk 0:00:14.7]} 62... Rf5 {[%clk 0:00:07.4]} 63.
c6 {[%clk 0:00:11]} 63... Rxf2+ {[%clk 0:00:07.9]} 64. Ke1 {[%clk 0:00:12.3]}
64... e3 {[%clk 0:00:07.3]} 65. Rc8+ {[%clk 0:00:12.6]} 65... Kf7 {[%clk
0:00:07.3]} 66. c7 {[%clk 0:00:11.9]} 66... Rc2 {[%clk 0:00:07.2]} 67. Nd5
{[%clk 0:00:13.1]} 67... Rc1+ {[%clk 0:00:04.2]} 68. Ke2 {[%clk 0:00:14]} 68...
Rc2+ {[%clk 0:00:05.8]} 69. Ke1 {[%clk 0:00:09.9]} 69... Rc1+ {[%clk 0:00:06.8]}
70. Ke2 {[%clk 0:00:10.3]} 70... Rc2+ {[%clk 0:00:07.6]} 71. Kd1 {[%clk
0:00:11.6]} 71... e2+ {[%clk 0:00:04.7]} 72. Ke1 {[%clk 0:00:13]} 72... Ne5
{[%clk 0:00:06]} 73. Nb4 {[%clk 0:00:03.3]} 73... Nf3+ {[%clk 0:00:06.4]} 74.
Kf2 {[%clk 0:00:04.8]} 74... e1=Q+ {[%clk 0:00:07.8]} 75. Kxf3 {[%clk
0:00:06.7]} 75... Qxb4 {[%clk 0:00:08.7]} 76. Rg8 {[%clk 0:00:07]} 76... Qc3+
{[%clk 0:00:09.1]} 0-1